Workbook

Sheet 031
B2: AUTORIDAD PARA EL MANEJO SUSTENTABLE DE LA CUENCA Y DEL LAGO DE AMATITLÁN
B3: NOMINA CORRESPONDIENTE AL MES DE SEPTIEMBRE 2018
B4: NÚMERO 25-2018
B5: RENGLÓN 031 "JORNALES"
D7: SOLICITUD DE PAGO
B9: SUBPRODUCTO: DIRECCIÓN Y COORDINACIÓN 001-001-0001
B10: 11130016-219-00-33-00-000-001-000-031-0115-11-0000-0000
B13: No. | C13: PUESTO | D13: Titulo Jornal Diario | E13: Empleado | F13: Contrato | G13: Fecha de Ingreso | H13: Jornal | I13: Días | J13: Renglón 031 | K13: Renglón 033 | L13: Renglón 033 | M13: Total Devengado Mensual | N13: Deducciones | Q13: Total Deducciones | R13: Liquido | S13: Número de Cuenta
N14: 201 | O14: 211 | P14: 120
J15: Jornales | K15: Bono 66-2000 | L15: complemento específico por nivelación | N15: IGSS | O15: Retenciones Judiciales | P15: Decreto 81-70
B16: 1 | C16: Encargada de Limpieza | D16: Conserje | E16: Gladis Mirtala Ramírez Sánchez | F16: 01-2018-031-AMSA | G16: 2008-01-02 | H16: 71.4 | I16: 30 | J16: =H16*I16 -> 2142 | K16: 250 | L16: =18.76*I16 -> 562.8 | M16: =SUM(J16:L16) -> 2954.8 | N16: =ROUND((J16+L16)*4.83%,2) -> 130.64 | O16: 0 | P16: 0 | Q16: =SUM(N16:P16) -> 130.64 | R16: =+M16-Q16 -> 2824.16 | S16: 3216012953
B17: 2 | D17: Conserje | E17: Vidal Cruz Martínez | F17: 02-2018-031-AMSA | G17: 2002-02-02 | H17: 71.4 | I17: 30 | J17: 2142 | K17: 250 | L17: =18.76*I17 -> 562.8 | M17: 2954.8 | N17: 130.64 | O17: 0 | P17: 0 | Q17: 130.64 | R17: 2824.16 | S17: 3216001970
B18: 3 | C18: Jardinero | D18: Conserje | E18: Victorina de Jesús Peralta Peralta | F18: 03-2018-031-AMSA | G18: 01/10/2014 | H18: 71.4 | I18: 30 | J18: 2142 | K18: 250 | L18: 562.8 | M18: 2954.8 | N18: 130.64 | O18: 0 | P18: 0 | Q18: 130.64 | R18: 2824.16 | S18: 3393002669
B19: 4 | C19: Encargada de Limpieza | D19: Conserje | E19: Elida Etelvina Obando Hernandez | F19: 05-2018-031-AMSA | G19: 25/10/2013 | H19: 71.4 | I19: 30 | J19: 2142 | K19: 250 | L19: 562.8 | M19: 2954.8 | N19: 130.64 | O19: 0 | P19: 0 | Q19: 130.64 | R19: 2824.16 | S19: 4654012114
B20: 5 | C20: Encargada de Limpieza | D20: Conserje | E20: Yomara Ninett Escobar Calderón | F20: 06-2018-031-AMSA | G20: 03/10/2014 | H20: 71.4 | I20: 30 | J20: 2142 | K20: 250 | L20: 562.8 | M20: 2954.8 | N20: 130.64 | O20: 0 | P20: 0 | Q20: 130.64 | R20: 2824.16 | S20: 3164072096
B21: 6 | D21: Conserje | E21: Domenica del Cid Barias | F21: 2018-031-AMSA | G21: 01/08/2018 | H21: 71.4 | I21: 30 | J21: =H21*I21 -> 2142 | K21: 250 | L21: =18.76*I21 -> 562.8 | M21: =SUM(J21:L21) -> 2954.8 | N21: =ROUND((J21+L21)*4.83%,2) -> 130.64 | O21: 0 | P21: 0 | Q21: =SUM(N21:P21) -> 130.64 | R21: =+M21-Q21 -> 2824.16 | S21: 3532023727
B22: 7 | D22: Conserje | E22: Josue Alexander Barrientos | F22: 2018-031-AMSA | G22: 01/08/2019 | H22: 71.4 | I22: 30 | J22: 2142 | K22: 250 | L22: 562.8 | M22: 2954.8 | N22: 130.64 | O22: 0 | P22: 0 | Q22: 130.64 | R22: 2824.16 | S22: 3185880577
B23: 8 | D23: Conserje | E23: Jacqueline Victoria Noj Carrera | F23: 07-2018-031-AMSA | G23: 01/01/2018 | H23: 71.4 | I23: 30 | J23: =H23*I23 -> 2142 | K23: 250 | L23: 562.8 | M23: =SUM(J23:L23) -> 2954.8 | N23: =ROUND((J23+L23)*4.83%,2) -> 130.64 | O23: 0 | P23: 0 | Q23: =SUM(N23:P23) -> 130.64 | R23: =+M23-Q23 -> 2824.16 | S23: 3759034879
B24: 9 | C24: Peon Vigilante | D24: Peón Vigilante V | E24: Estuardo Randolfo Gutierrez Cruz | F24: 08-2018-031-AMSA | G24: 2017-03-01 | H24: 75.64 | I24: 30 | J24: =H24*I24 -> 2269.2 | K24: 250 | L24: =14.52*I24 -> 435.6 | M24: =SUM(J24:L24) -> 2954.8 | N24: =ROUND((J24+L24)*4.83%,2) -> 130.64 | O24: 0 | P24: 0 | Q24: =SUM(N24:P24) -> 130.64 | R24: =+M24-Q24 -> 2824.16 | S24: 3607017078
B25: 10 | C25: Peon Vigilante | D25: Peón Vigilante V | E25: Biayner Soto Arana | F25: 09-2018-031-AMSA | G25: 2017-02-20 | H25: 75.64 | I25: 30 | J25: 2269.2 | K25: 250 | L25: =14.52*I25 -> 435.6 | M25: 2954.8 | N25: 130.64 | O25: 0 | P25: 0 | Q25: 130.64 | R25: 2824.16 | S25: 3287038944
B26: 11 | C26: Peon Vigilante | D26: Peón Vigilante V | E26: Hamilton Wilfredo Hernández Hernández | F26: 11-2018-031-AMSA | G26: 2017-02-20 | H26: 75.64 | I26: 30 | J26: 2269.2 | K26: 250 | L26: 435.6 | M26: 2954.8 | N26: 130.64 | O26: 0 | P26: 0 | Q26: 130.64 | R26: 2824.16 | S26: 3287039080
B27: 12 | C27: Peon Vigilante | D27: Peón Vigilante V | E27: Nazario Hernández Osorio | F27: 13-2018-031-AMSA | G27: 2017-02-20 | H27: 75.64 | I27: 30 | J27: 2269.2 | K27: 250 | L27: 435.6 | M27: 2954.8 | N27: 130.64 | O27: 0 | P27: 0 | Q27: 130.64 | R27: 2824.16 | S27: 3364085352
B28: 13 | C28: Peon Vigilante | D28: Peón Vigilante V | E28: Candido Samayoa y Samayoa | F28: 14-2018-031-AMSA | G28: 2017-02-20 | H28: 75.64 | I28: 30 | J28: 2269.2 | K28: 250 | L28: 435.6 | M28: 2954.8 | N28: 130.64 | O28: 0 | P28: 0 | Q28: 130.64 | R28: 2824.16 | S28: 3532020817
B29: 14 | C29: Peon Vigilante | D29: Peón Vigilante V | E29: Axel Augusto Lopez De León | F29: 15-2018-031-AMSA | G29: 2017-02-20 | H29: 75.64 | I29: 30 | J29: =H29*I29 -> 2269.2 | K29: 250 | L29: 435.6 | M29: 2954.8 | N29: 130.64 | O29: 0 | P29: 0 | Q29: 130.64 | R29: 2824.16 | S29: 3424051646
B30: 15 | C30: Peon Vigilante | D30: Peón Vigilante V | E30: Armando Roca Valdes | F30: 113-2018-031-AMSA | G30: 2018-02-01 | H30: 75.64 | I30: 30 | J30: 2269.2 | K30: 250 | L30: 435.6 | M30: 2954.8 | N30: 130.64 | O30: 0 | P30: 0 | Q30: 130.64 | R30: 2824.16 | S30: 03101300033657
B31: 16 | C31: Peon Vigilante | D31: Peón Vigilante V | E31: Jose Urias Muñoz | F31: 18-2018-031-AMSA | G31: 2017-02-20 | H31: 75.64 | I31: 30 | J31: =H31*I31 -> 2269.2 | K31: 250 | L31: 435.6 | M31: 2954.8 | N31: 130.64 | O31: 0 | P31: 0 | Q31: 130.64 | R31: 2824.16 | S31: 3137127054
B32: 17 | C32: Peon Vigilante | D32: Peón Vigilante V | E32: Henry Alejandro Ventura Hernandez | F32: 19-2018-031-AMSA | G32: 2017-02-20 | H32: 75.64 | I32: 30 | J32: 2269.2 | K32: 250 | L32: 435.6 | M32: 2954.8 | N32: 130.64 | O32: 0 | P32: 0 | Q32: 130.64 | R32: 2824.16 | S32: 3287039109
B33: 18 | C33: Peon Vigilante | D33: Peón Vigilante V | E33: Jorge Adán Arizandieta García | F33: 20-2018-031-AMSA | G33: 2017-02-20 | H33: 75.64 | I33: 30 | J33: 2269.2 | K33: 250 | L33: 435.6 | M33: 2954.8 | N33: 130.64 | O33: 0 | P33: 0 | Q33: 130.64 | R33: 2824.16 | S33: 3287038912
B34: 19 | C34: Peon Vigilante | D34: Peón Vigilante V | E34: Ricardo Arizandieta García | F34: 21-2018-031-AMSA | G34: 2017-02-20 | H34: 75.64 | I34: 30 | J34: 2269.2 | K34: 250 | L34: 435.6 | M34: 2954.8 | N34: 130.64 | O34: 0 | P34: 0 | Q34: 130.64 | R34: 2824.16 | S34: 3287038926
B35: 20 | D35: Peón Vigilante V | E35: Miguel Angel de León | F35: 136-2018-031-AMSA | G35: 2018-05-03 | H35: 75.64 | I35: 30 | J35: =H35*I35 -> 2269.2 | K35: 250 | L35: =14.52*I35 -> 435.6 | M35: =SUM(J35:L35) -> 2954.8 | N35: =ROUND((J35+L35)*4.83%,2) -> 130.64 | O35: 0 | P35: 0 | Q35: =SUM(N35:P35) -> 130.64 | R35: =+M35-Q35 -> 2824.16 | S35: 4094061109
B36: 21 | D36: Peón Vigilante V | E36: Roberto Romero Peralta | F36: 22-2018-031-AMSA | G36: 2015-02-17 | H36: 75.64 | I36: 30 | J36: =H36*I36 -> 2269.2 | K36: 250 | L36: 435.6 | M36: 2954.8 | N36: =ROUND((J36+L36)*4.83%,2) -> 130.64 | O36: 0 | P36: 0 | Q36: =SUM(N36:P36) -> 130.64 | R36: =+M36-Q36 -> 2824.16 | S36: 3164072927
B37: 22 | C37: Peon Vigilante | D37: Peón | E37: Rutilia Gomez Lopez | F37: 23-2018-031-AMSA | G37: 2017-05-16 | H37: 71.4 | I37: 30 | J37: 2142 | K37: 250 | L37: =18.76*I37 -> 562.8 | M37: 2954.8 | N37: 130.64 | O37: 0 | P37: 0 | Q37: 130.64 | R37: 2824.16 | S37: 3153059040
F38: Totales | J38: =SUM(J16:J37) -> 48777.6 | K38: 5500 | L38: 10728 | M38: 65005.6 | N38: 2874.08 | O38: 0 | P38: 0 | Q38: 2874.08 | R38: 62131.52 | V38: =2909.96*21 -> 61109.16
L39: =L38+K38 -> 16228
B42: SUBPRODUCTO: CONTROL Y MANEJO DE LOS DESECHOS SÓLIDOS EN LA CUENCA DEL LAGO DE AMATITLÁN 001-002-0005
B43: 11130016-219-00-33-00-000-002-000-031-0115-11-0000-0000
B46: No. | C46: PUESTO | D46: Titulo Jornal Diario | E46: Empleado | F46: Contrato | G46: Fecha de Ingreso | H46: Jornal | I46: Días | J46: Renglón 031 | K46: Renglón 033 | L46: Renglón 033 | M46: Total Devengado Mensual | N46: Deducciones | Q46: Total Deducciones | R46: Liquido | S46: Número de Cuenta | U46: 0010 / 692 - UC RELLENO SANITARIO (004)
N47: 201 | O47: 211 | P47: 120
J48: Jornales | K48: Bono 66-2000 | L48: complemento específico por nivelación | N48: IGSS | O48: Retenciones Judiciales | P48: Decreto 81-70
B49: 1 | C49: Peón de Campo | D49: Peón | E49: Maynor de Jesús De León Dionicio | F49: 24-2018-031-AMSA | G49: 05/01/2015 | H49: 71.4 | I49: 30 | J49: =H49*I49 -> 2142 | K49: 250 | L49: =18.76*I49 -> 562.8 | M49: =SUM(J49:L49) -> 2954.8 | N49: =ROUND((J49+L49)*4.83%,2) -> 130.64 | O49: 0 | P49: 0 | Q49: =SUM(N49:P49) -> 130.64 | R49: =+M49-Q49 -> 2824.16 | S49: 3216010363
B50: 2 | D50: Peón | E50: Cecilio Antonio Vásquez Soto | F50: 25-2018-031-AMSA | G50: 2012-10-02 | H50: 71.4 | I50: 30 | J50: 2142 | K50: 250 | L50: 562.8 | M50: 2954.8 | N50: 130.64 | O50: 0 | P50: 0 | Q50: 130.64 | R50: 2824.16 | S50: 3532007563
B51: 3 | D51: Peón | E51: Rafael de Jesús Perea Peralta | F51: 26-2018-031-AMSA | G51: 01/01/2016 | H51: 71.4 | I51: 30 | J51: =H51*I51 -> 2142 | K51: 250 | L51: 562.8 | M51: =SUM(J51:L51) -> 2954.8 | N51: =ROUND((J51+L51)*4.83%,2) -> 130.64 | O51: 0 | P51: 0 | Q51: =SUM(N51:P51) -> 130.64 | R51: 2824.16 | S51: 3216008208
B52: 4 | D52: Peón | E52: José Filiberto Domingo Domingo | F52: 27-2018-031-AMSA | G52: 2006-01-02 | H52: 71.4 | I52: 30 | J52: =H52*I52 -> 2142 | K52: 250 | L52: 562.8 | M52: =SUM(J52:L52) -> 2954.8 | N52: =ROUND((J52+L52)*4.83%,2) -> 130.64 | O52: 0 | P52: 0 | Q52: =SUM(N52:P52) -> 130.64 | R52: 2824.16 | S52: 4216005864
B53: 5 | D53: Peón | E53: Domingo Sánchez Alonzo | F53: 55-2018-031-AMSA | G53: 2018-01-01 | H53: 71.4 | I53: 30 | J53: =H53*I53 -> 2142 | K53: 250 | L53: 562.8 | M53: =SUM(J53:L53) -> 2954.8 | N53: =ROUND((J53+L53)*4.83%,2) -> 130.64 | O53: 0 | P53: 0 | Q53: =SUM(N53:P53) -> 130.64 | R53: 2824.16 | S53: 3216034565
B54: 6 | D54: Peón | E54: Alber Asael Godínez Hernández | F54: 56-2018-031-AMSA | G54: 2018-01-01 | H54: 71.4 | I54: 30 | J54: 2142 | K54: 250 | L54: 562.8 | M54: 2954.8 | N54: 130.64 | O54: 0 | P54: 0 | Q54: 130.64 | R54: 2824.16 | S54: 3393002889
F55: Totales | J55: =SUM(J49:J54) -> 12852 | K55: =SUM(K49:K54) -> 1500 | L55: =SUM(L49:L54) -> 3376.8 | M55: =SUM(M49:M54) -> 17728.8 | N55: 783.84 | O55: 0 | P55: 0 | Q55: 783.84 | R55: 16944.96
L56: =L55+K55 -> 4876.8
A63: SUBPRODUCTO: TRATAMIENTO DE LAS AGUAS RESIDUALES A TRÁVES DE LAS PLANTAS DE TRATAMIENTO A CARGO DE LA INSTITUCIÓN 001-002-0001
B64: 11130016-219-00-33-00-000-002-000-031-0115-11-0000-0000
B66: No. | C66: PUESTO | D66: Titulo Jornal Diario | E66: Empleado | F66: Contrato | G66: Fecha de Ingreso | H66: Jornal | I66: Días | J66: Renglón 031 | K66: Renglón 033 | L66: Renglón 033 | M66: Total Devengado Mensual | N66: Deducciones | Q66: Total Deducciones | R66: Liquido | S66: Número de Cuenta | U66: 0009 / 691 - UC PLANTAS DE TRATAMIENTO (003)
N67: 201 | O67: 211 | P67: 120
J68: Jornales | K68: Bono 66-2000 | L68: complemento específico por nivelación | N68: IGSS | O68: Retenciones Judiciales | P68: Decreto 81-70
B69: 1 | C69: Peon Vigilante | D69: Peón Vigilante V | E69: Werlington Jeffrey Robinzon Alvarado Hernandez | F69: 10-2018-031-AMSA | G69: 2017-02-20 | H69: 75.64 | I69: 30 | J69: =H69*I69 -> 2269.2 | K69: 250 | L69: =14.52*I69 -> 435.6 | M69: =SUM(J69:L69) -> 2954.8 | N69: =ROUND((J69+L69)*4.83%,2) -> 130.64 | O69: 0 | P69: 0 | Q69: =SUM(N69:P69) -> 130.64 | R69: =+M69-Q69 -> 2824.16 | S69: 3287038994
B70: 2 | C70: Operadores PTAR | D70: Peón | E70: Agustín López López | F70: 28-2018-031-AMSA | G70: 2007-01-02 | H70: 71.4 | I70: 30 | J70: =H70*I70 -> 2142 | K70: 250 | L70: =18.76*I70 -> 562.8 | M70: =SUM(J70:L70) -> 2954.8 | N70: =ROUND((J70+L70)*4.83%,2) -> 130.64 | O70: 0 | P70: 0 | Q70: =SUM(N70:P70) -> 130.64 | R70: =+M70-Q70 -> 2824.16 | S70: 3216004367
B71: 3 | C71: Operadores PTAR | D71: Peón | E71: Nelson Orlando Quiñonez Yohol | F71: 29-2018-031-AMSA | G71: 2005-02-01 | H71: 71.4 | I71: 30 | J71: 2142 | K71: 250 | L71: 562.8 | M71: 2954.8 | N71: 130.64 | O71: 0 | P71: 0 | Q71: 130.64 | R71: 2824.16 | S71: 3216001475
B72: 4 | C72: Operadores PTAR | D72: Peón | E72: Herculano Colmenar Estrada | F72: 30-2018-031-AMSA | G72: 2003-03-01 | H72: 71.4 | I72: 30 | J72: 2142 | K72: 250 | L72: 562.8 | M72: 2954.8 | N72: 130.64 | O72: 0 | P72: 0 | Q72: 130.64 | R72: 2824.16 | S72: 3216001439
B73: 5 | C73: Operadores PTAR | D73: Peón | E73: Guillermo Apolonio Chuc Mejía | F73: 31-2018-031-AMSA | G73: 2003-05-01 | H73: 71.4 | I73: 30 | J73: 2142 | K73: 250 | L73: 562.8 | M73: 2954.8 | N73: 130.64 | O73: 0 | P73: 0 | Q73: 130.64 | R73: 2824.16 | S73: 3216001493
B74: 6 | C74: Operadores PTAR | D74: Peón | E74: Marcelino Gómez Dávila | F74: 32-2018-031-AMSA | G74: 2003-03-01 | H74: 71.4 | I74: 30 | J74: 2142 | K74: 250 | L74: 562.8 | M74: 2954.8 | N74: 130.64 | O74: 0 | P74: 0 | Q74: 130.64 | R74: 2824.16 | S74: 4216002459
B75: 7 | C75: Peón de Campo | D75: Peón | E75: Héctor William Martínez Cabrera | F75: 33-2018-031-AMSA | G75: 2007-01-02 | H75: 71.4 | I75: 30 | J75: 2142 | K75: 250 | L75: 562.8 | M75: 2954.8 | N75: 130.64 | O75: 0 | P75: 0 | Q75: 130.64 | R75: 2824.16 | S75: 3216004486
B76: 8 | D76: Peón | E76: Abel Barillas Grajeda | F76: 34-2018-031-AMSA | G76: 2003-04-01 | H76: 71.4 | I76: 30 | J76: 2142 | K76: 250 | L76: 562.8 | M76: 2954.8 | N76: 130.64 | O76: 0 | P76: 0 | Q76: 130.64 | R76: 2824.16 | S76: 3216001443
A77: 58 | B77: 9 | D77: Peón | E77: Napoleon Canahui Pop | F77: 35-2018-031-AMSA | G77: 2017-06-01 | H77: 71.4 | I77: 30 | J77: =H77*I77 -> 2142 | K77: 250 | L77: 562.8 | M77: =SUM(J77:L77) -> 2954.8 | N77: =ROUND((J77+L77)*4.83%,2) -> 130.64 | O77: 0 | P77: 0 | Q77: =SUM(N77:P77) -> 130.64 | R77: 2824.16 | S77: 3287036524
B78: 10 | D78: Peón | E78: Calixto de Jesús Rodríguez Quintero | F78: 36-2018-031-AMSA | G78: 2016-01-01 | H78: 71.4 | I78: 30 | J78: 2142 | K78: 250 | L78: 562.8 | M78: 2954.8 | N78: 130.64 | O78: 0 | P78: 0 | Q78: 130.64 | R78: =+M78-Q78 -> 2824.16 | S78: 3153050750
B79: 11 | D79: Peón | E79: Wilber Celestino Gonzalez Guerra | F79: 37-2018-031-AMSA | G79: 2018-01-01 | H79: 71.4 | I79: 30 | J79: =H79*I79 -> 2142 | K79: 250 | L79: 562.8 | M79: =SUM(J79:L79) -> 2954.8 | N79: =ROUND((J79+L79)*4.83%,2) -> 130.64 | O79: 0 | P79: 0 | Q79: =SUM(N79:P79) -> 130.64 | R79: =+M79-Q79 -> 2824.16 | S79: 3287036510
B80: 12 | D80: Peón | E80: Alexis Rodolfo Gonzáles Avila | F80: 38-2018-031-AMSA | G80: 2018-01-01 | H80: 71.4 | I80: 30 | J80: 2142 | K80: 250 | L80: 562.8 | M80: 2954.8 | N80: 130.64 | O80: 0 | P80: 0 | Q80: 130.64 | R80: 2824.16 | S80: 3493030662
B81: 13 | D81: Peón | E81: Domingo Antonio Martínez Vásquez | F81: 39-2018-031-AMSA | G81: 2018-01-01 | H81: 71.4 | I81: 30 | J81: 2142 | K81: 250 | L81: 562.8 | M81: 2954.8 | N81: 130.64 | O81: 0 | P81: 0 | Q81: 130.64 | R81: 2824.16 | S81: 3229011703
B82: 14 | D82: Peón | E82: Juan Luis Hernández Hernández | F82: 40-2018-031-AMSA | G82: 2018-01-01 | H82: 71.4 | I82: 30 | J82: 2142 | K82: 250 | L82: 562.8 | M82: 2954.8 | N82: 130.64 | O82: 0 | P82: 0 | Q82: 130.64 | R82: 2824.16 | S82: 3229010483 | T82: 3229010483
B83: 15 | D83: Peón | E83: Carlos Augusto Secaida Hernández | F83: 41-2018-031-AMSA | G83: 2018-01-01 | H83: 71.4 | I83: 30 | J83: 2142 | K83: 250 | L83: 562.8 | M83: 2954.8 | N83: 130.64 | O83: 0 | P83: 0 | Q83: 130.64 | R83: 2824.16 | S83: 3287027181
B84: 16 | D84: Peón | E84: Juan José Rodas Rivas | F84: 42-2018-031-AMSA | G84: 2018-01-01 | H84: 71.4 | I84: 30 | J84: 2142 | K84: 250 | L84: 562.8 | M84: 2954.8 | N84: 130.64 | O84: 700 | P84: 0 | Q84: 830.64 | R84: 2124.16 | S84: 3216008414
B85: 17 | D85: Peón | E85: Alfredo Leonardo Bámaca | F85: 43-2018-031-AMSA | G85: 2018-01-01 | H85: 71.4 | I85: 30 | J85: 2142 | K85: 250 | L85: 562.8 | M85: 2954.8 | N85: 130.64 | O85: 0 | P85: 0 | Q85: 130.64 | R85: 2824.16 | S85: 3661014699
B86: 18 | D86: Peón | E86: Filiberto Antonio Pinto | F86: 44-2018-031-AMSA | G86: 2018-01-01 | H86: 71.4 | I86: 30 | J86: 2142 | K86: 250 | L86: 562.8 | M86: 2954.8 | N86: 130.64 | O86: 0 | P86: 0 | Q86: 130.64 | R86: 2824.16 | S86: 3287036657
B87: 19 | D87: Peón | E87: Billy Joel Fernández Guevara | F87: 46-2018-031-AMSA | G87: 2018-01-01 | H87: 71.4 | I87: 30 | J87: 2142 | K87: 250 | L87: 562.8 | M87: 2954.8 | N87: 130.64 | O87: 0 | P87: 0 | Q87: 130.64 | R87: 2824.16 | S87: 3137114532
B88: 20 | D88: Peón | E88: Héctor Vásquez Gómez | F88: 47-2018-031-AMSA | G88: 2018-01-01 | H88: 71.4 | I88: 30 | J88: 2142 | K88: 250 | L88: 562.8 | M88: 2954.8 | N88: 130.64 | O88: 0 | P88: 0 | Q88: 130.64 | R88: 2824.16 | S88: 3493048208
B89: 21 | D89: Peón | E89: Fidencio Monge Pérez | F89: 48-2018-031-AMSA | G89: 2018-01-01 | H89: 71.4 | I89: 30 | J89: 2142 | K89: 250 | L89: 562.8 | M89: 2954.8 | N89: 130.64 | O89: 0 | P89: 0 | Q89: 130.64 | R89: 2824.16 | S89: 3216036260
B90: 22 | D90: Peón | E90: Basilio Ordoñez Lares | F90: 49-2018-031-AMSA | G90: 2018-01-01 | H90: 71.4 | I90: 30 | J90: 2142 | K90: 250 | L90: 562.8 | M90: 2954.8 | N90: 130.64 | O90: 0 | P90: 0 | Q90: 130.64 | R90: 2824.16 | S90: 3759029670
B91: 23 | D91: Peón | E91: Québrin Humberto Romero Chinchilla | F91: 50-2018-031-AMSA | G91: 2018-01-01 | H91: 71.4 | I91: 30 | J91: 2142 | K91: 250 | L91: 562.8 | M91: 2954.8 | N91: 130.64 | O91: 0 | P91: 0 | Q91: 130.64 | R91: 2824.16 | S91: 3628011282
B92: 24 | D92: Peón | E92: Inocente Byron Pineda Dionicio | F92: 52-2018-031-AMSA | G92: 2018-01-01 | H92: 71.4 | I92: 30 | J92: 2142 | K92: 250 | L92: 562.8 | M92: 2954.8 | N92: 130.64 | O92: 0 | P92: 0 | Q92: 130.64 | R92: 2824.16 | S92: 3216003437
B93: 25 | D93: Peón | E93: Flavio Alí Alonso Gil | F93: 53-2018-031-AMSA | G93: 2002-01-02 | H93: 71.4 | I93: 30 | J93: 2142 | K93: 250 | L93: 562.8 | M93: 2954.8 | N93: 130.64 | O93: 670 | P93: 0 | Q93: 800.64 | R93: 2154.16 | S93: 3216001631
B94: 26 | D94: Peón | E94: Carlos Fernando Tello Valdez | F94: 54-2018-031-AMSA | G94: 2002-01-02 | H94: 71.4 | I94: 30 | J94: 2142 | K94: 250 | L94: 562.8 | M94: 2954.8 | N94: 130.64 | O94: 0 | P94: 0 | Q94: 130.64 | R94: 2824.16 | S94: 4216002514
F95: Totales | J95: =SUM(J69:J94) -> 55819.2 | K95: =SUM(K69:K94) -> 6500 | L95: 14505.6 | M95: 76824.8 | N95: 3396.64 | O95: 1370 | P95: 0 | Q95: 4766.64 | R95: 72058.16
L96: =L95+K95 -> 21005.6
B122: SUBPRODUCTO: VOLUMEN DE DESECHOS SÓLIDOS FLOTANTES Y PLANTAS ACUÁTICAS EXTRAÍDOS DEL LAGO DE AMATITLÁN 001-002-0002
B123: 11130016-219-00-33-00-000-002-000-031-0115-11-0000-0000
B126: No. | C126: PUESTO | D126: Titulo Jornal Diario | E126: Empleado | F126: Contrato | G126: Fecha de Ingreso | H126: Jornal | I126: Días | J126: Renglón 031 | K126: Renglón 033 | L126: Renglón 033 | M126: Total Devengado Mensual | N126: Deducciones | Q126: Total Deducciones | R126: Liquido | S126: Número de Cuenta | U126: 0006 / 628 - UC LIMPIEZA DEL LAGO (002)
N127: 201 | O127: 211 | P127: 120
J128: Jornales | K128: Bono 66-2000 | L128: complemento específico por nivelación | N128: IGSS | O128: Retenciones Judiciales | P128: Decreto 81-70
B129: 1 | D129: Peón | E129: Roberto Leonel González Miguel | F129: 51-2018-031-AMSA | G129: 2018-01-01 | H129: 71.4 | I129: 30 | J129: =H129*I129 -> 2142 | K129: 250 | L129: =18.76*I129 -> 562.8 | M129: =SUM(J129:L129) -> 2954.8 | N129: =ROUND((J129+L129)*4.83%,2) -> 130.64 | O129: 0 | P129: 0 | Q129: =SUM(N129:P129) -> 130.64 | R129: =+M129-Q129 -> 2824.16 | S129: 3216033718
B130: 2 | C130: Operario de Maquinaria | D130: Peón | E130: Gerver Oswaldo Suruy Estupe | F130: 57-2018-031-AMSA | G130: 2007-01-02 | H130: 71.4 | I130: 30 | J130: =H130*I130 -> 2142 | K130: 250 | L130: 562.8 | M130: =SUM(J130:L130) -> 2954.8 | N130: =ROUND((J130+L130)*4.83%,2) -> 130.64 | O130: 0 | P130: 0 | Q130: =SUM(N130:P130) -> 130.64 | R130: =+M130-Q130 -> 2824.16 | S130: 3216003318
B131: 3 | C131: Lanchero | D131: Peón | E131: Andrés Payes Rodríguez | F131: 58-2018-031-AMSA | G131: 2002-01-02 | H131: 71.4 | I131: 30 | J131: =H131*I131 -> 2142 | K131: 250 | L131: 562.8 | M131: =SUM(J131:L131) -> 2954.8 | N131: =ROUND((J131+L131)*4.83%,2) -> 130.64 | O131: 800 | P131: 0 | Q131: =SUM(N131:P131) -> 930.64 | R131: =+M131-Q131 -> 2024.16 | S131: 3216001700
B132: 4 | C132: Peón de Campo | D132: Peón | E132: Ignacio Seijas Sequen | F132: 59-2018-031-AMSA | G132: 2006-01-02 | H132: 71.4 | I132: 30 | J132: 2142 | K132: 250 | L132: 562.8 | M132: 2954.8 | N132: 130.64 | O132: 0 | P132: 0 | Q132: 130.64 | R132: 2824.16 | S132: 3234009071
B133: 5 | C133: Peón de Campo | D133: Peón | E133: Mario Arturo Sigüenza | F133: 60-2018-031-AMSA | G133: 2003-08-01 | H133: 71.4 | I133: 30 | J133: 2142 | K133: 250 | L133: 562.8 | M133: 2954.8 | N133: 130.64 | O133: 0 | P133: 0 | Q133: 130.64 | R133: 2824.16 | S133: 3216001801
B134: 6 | C134: Encargado de Oxigenadores | D134: Peón | E134: Jesús Antonio Montúfar Mazariegos | F134: 61-2018-031-AMSA | G134: 2007-05-02 | H134: 71.4 | I134: 30 | J134: 2142 | K134: 250 | L134: 562.8 | M134: 2954.8 | N134: 130.64 | O134: 0 | P134: 0 | Q134: 130.64 | R134: 2824.16 | S134: 3164031580
B135: 7 | C135: Peón de Campo | D135: Peón | E135: Carlos Humberto Gatica González | F135: 62-2018-031-AMSA | G135: 2007-05-16 | H135: 71.4 | I135: 30 | J135: 2142 | K135: 250 | L135: 562.8 | M135: 2954.8 | N135: 130.64 | O135: 0 | P135: 0 | Q135: 130.64 | R135: 2824.16 | S135: 4216002528
B136: 8 | C136: Peón de Campo | D136: Peón | E136: Nery Armando Castañeda Avilés | F136: 63-2018-031-AMSA | G136: 2008-06-09 | H136: 71.4 | I136: 30 | J136: 2142 | K136: 250 | L136: 562.8 | M136: 2954.8 | N136: 130.64 | O136: 0 | P136: 0 | Q136: 130.64 | R136: 2824.16 | S136: 3164034252
B137: 9 | C137: Peón de Campo | D137: Peón | E137: Yury Geovani Guzmán Avilés | F137: 64-2018-031-AMSA | G137: 2010-01-02 | H137: 71.4 | I137: 30 | J137: 2142 | K137: 250 | L137: 562.8 | M137: 2954.8 | N137: 130.64 | O137: 0 | P137: 0 | Q137: 130.64 | R137: 2824.16 | S137: 3216001645
B138: 10 | D138: Peón | E138: Cosmen Vitalino Obando Montenegro | F138: 65-2018-031-AMSA | G138: 2007-01-02 | H138: 71.4 | I138: 30 | J138: 2142 | K138: 250 | L138: 562.8 | M138: 2954.8 | N138: 130.64 | O138: 0 | P138: 0 | Q138: 130.64 | R138: 2824.16 | S138: 3216004490
B139: 11 | D139: Peón | E139: Juan Antonio Roque Dionisio | F139: 66-2018-031-AMSA | G139: 2007-01-02 | H139: 71.4 | I139: 30 | J139: 2142 | K139: 250 | L139: 562.8 | M139: 2954.8 | N139: 130.64 | O139: 0 | P139: 0 | Q139: 130.64 | R139: 2824.16 | S139: 3216004353
B140: 12 | D140: Peón | E140: Marlon Geovani Arizandieta Arroyo | F140: 67-2018-031-AMSA | G140: 2013-02-01 | H140: 71.4 | I140: 30 | J140: 2142 | K140: 250 | L140: 562.8 | M140: 2954.8 | N140: 130.64 | O140: 0 | P140: 0 | Q140: 130.64 | R140: 2824.16 | S140: 3216001627
B141: 13 | D141: Peón | E141: Erik Leonel Quixaj Ortiz | F141: 68-2018-031-AMSA | G141: 2017-01-01 | H141: 71.4 | I141: 30 | J141: 2142 | K141: 250 | L141: 562.8 | M141: 2954.8 | N141: 130.64 | O141: 0 | P141: 0 | Q141: 130.64 | R141: 2824.16 | S141: 3164003073
B142: 14 | D142: Conserje | E142: Reyna Elizabeth Toc Choz | F142: 69-2018-031-AMSA | G142: 2014-07-14 | H142: 71.4 | I142: 30 | J142: =H142*I142 -> 2142 | K142: 250 | L142: 562.8 | M142: =SUM(J142:L142) -> 2954.8 | N142: =ROUND((J142+L142)*4.83%,2) -> 130.64 | O142: 0 | P142: 0 | Q142: =SUM(N142:P142) -> 130.64 | R142: 2824.16 | S142: 3247011971
B143: 15 | D143: Peón | E143: José Luis Arizandieta Cabrera | F143: 70-2018-031-AMSA | G143: 2016-01-01 | H143: 71.4 | I143: 30 | J143: =H143*I143 -> 2142 | K143: 250 | L143: 562.8 | M143: =SUM(J143:L143) -> 2954.8 | N143: =ROUND((J143+L143)*4.83%,2) -> 130.64 | O143: 0 | P143: 0 | Q143: =SUM(N143:P143) -> 130.64 | R143: =+M143-Q143 -> 2824.16 | S143: 3229010497
B144: 16 | D144: Peón | E144: Jorge Eduardo López Ramírez | F144: 71-2018-031-AMSA | G144: 2018-01-01 | H144: 71.4 | I144: 30 | J144: =H144*I144 -> 2142 | K144: 250 | L144: 562.8 | M144: =SUM(J144:L144) -> 2954.8 | N144: =ROUND((J144+L144)*4.83%,2) -> 130.64 | O144: 0 | P144: 0 | Q144: =SUM(N144:P144) -> 130.64 | R144: =+M144-Q144 -> 2824.16 | S144: 3815003829
B145: 17 | D145: Peón | E145: Hector Antonio Avila Hernández | F145: 139-2018-031-AMSA | G145: 03/069/2018 | H145: 71.4 | I145: 27 | J145: 1927.8 | K145: 250 | L145: 506.52 | M145: 2684.32 | N145: 117.58 | O145: 0 | P145: 0 | Q145: 117.58 | R145: 2566.74 | S145: 3287041636
B146: 18 | D146: Peón | E146: Esvin Daniel Ramirez Pineda | F146: 73-2018-031-AMSA | G146: 2018-01-01 | H146: 71.4 | I146: 30 | J146: 2142 | K146: 250 | L146: 562.8 | M146: 2954.8 | N146: 130.64 | O146: 0 | P146: 0 | Q146: 130.64 | R146: 2824.16 | S146: 3164073417
B147: 19 | D147: Peón | E147: Jefry Antonio Paiz Díaz | F147: 74-2018-031-AMSA | G147: 2018-01-01 | H147: 71.4 | I147: 30 | J147: 2142 | K147: 250 | L147: 562.8 | M147: 2954.8 | N147: 130.64 | O147: 0 | P147: 0 | Q147: 130.64 | R147: 2824.16 | S147: 3164073908
B148: 20 | D148: Peón | E148: Edie Stuardo García Velásquez | F148: 75-2018-031-AMSA | G148: 2018-01-01 | H148: 71.4 | I148: 30 | J148: 2142 | K148: 250 | L148: 562.8 | M148: 2954.8 | N148: 130.64 | O148: 0 | P148: 0 | Q148: 130.64 | R148: 2824.16 | S148: 3287036831
B149: 21 | D149: Peón | E149: Bernardino Alistún Cachín | F149: 76-2018-031-AMSA | G149: 2018-01-01 | H149: 71.4 | I149: 30 | J149: 2142 | K149: 250 | L149: 562.8 | M149: 2954.8 | N149: 130.64 | O149: 0 | P149: 0 | Q149: 130.64 | R149: 2824.16 | S149: 3287036813
B150: 22 | D150: Peón | E150: Epimenio Nehemias Arroyo Telon | F150: 78-2018-031-AMSA | G150: 2018-01-01 | H150: 71.4 | I150: 30 | J150: 2142 | K150: 250 | L150: 562.8 | M150: 2954.8 | N150: 130.64 | O150: 0 | P150: 0 | Q150: 130.64 | R150: 2824.16 | S150: 3229056994
F151: Totales | J151: =SUM(J129:J150) -> 46909.8 | K151: =SUM(K129:K150) -> 5500 | L151: =SUM(L129:L150) -> 12325.32 | M151: =SUM(M129:M150) -> 64735.12 | N151: =SUM(N129:N150) -> 2861.02 | O151: 800 | P151: 0 | Q151: 3661.02 | R151: 61074.1
L152: =L151+K151 -> 17825.32
B154: SUBPRODUCTO: REFORESTACIÓN Y MANTENIMIENTO DE ÁREAS EN LA CUENCA DEL LAGO DE AMATITLÁN 001-008-0008
B155: 11130016-219-00-33-00-000-005-000-031-0115-11-0000-0000
B157: No. | C157: PUESTO | D157: Titulo Jornal Diario | E157: Empleado | F157: Contrato | G157: Fecha de Ingreso | H157: Jornal | I157: Días | J157: Renglón 031 | K157: Renglón 033 | L157: Renglón 033 | M157: Total Devengado Mensual | N157: Deducciones | Q157: Total Deducciones | R157: Liquido | S157: Número de Cuenta | V157: 0005 / 346 - UC REFORESTACIÓN (008)
N158: 201 | O158: 211 | P158: 120
J159: Jornales | K159: Bono 66-2000 | L159: complemento específico por nivelación | N159: IGSS | O159: Retenciones Judiciales | P159: Decreto 81-70
B160: 1 | D160: Jardinero II | E160: José Abel Chamalé Par | F160: 77-2018-031-AMSA | G160: 2018-01-01 | H160: 72.54 | I160: 30 | J160: =H160*I160 -> 2176.2 | K160: 250 | L160: =17.62*I160 -> 528.6 | M160: =SUM(J160:L160) -> 2954.8 | N160: =ROUND((J160+L160)*4.83%,2) -> 130.64 | O160: 0 | Q160: =SUM(N160:P160) -> 130.64 | R160: =+M160-Q160 -> 2824.16 | S160: 3164078632 | U160: =90.16-72.54 -> 17.62
B161: 2 | D161: Jardinero II | E161: Esvin Leonel Rivera Pineda | F161: 79-2018-031-AMSA | G161: 2014-02-17 | H161: 72.54 | I161: 30 | J161: =H161*I161 -> 2176.2 | K161: 250 | L161: =17.62*I161 -> 528.6 | M161: =SUM(J161:L161) -> 2954.8 | N161: =ROUND((J161+L161)*4.83%,2) -> 130.64 | O161: 0 | Q161: =SUM(N161:P161) -> 130.64 | R161: =+M161-Q161 -> 2824.16 | S161: 3216001659
B162: 3 | C162: Peón de Campo | D162: Jardinero II | E162: José Alberto Rucal | F162: 80-2018-031-AMSA | G162: 2002-01-02 | H162: 72.54 | I162: 20 | J162: 1450.8 | K162: 250 | L162: 352.4 | M162: 2053.2 | N162: 87.09 | O162: 0 | Q162: 87.09 | R162: 1966.11 | S162: 3216001457 | U162: NACIONES UNIDAS
B163: 4 | C163: Peón de Campo | D163: Jardinero II | E163: Julio Roberto Martínez Aguilar | F163: 81-2018-031-AMSA | G163: 2002-01-02 | H163: 72.54 | I163: 30 | J163: 2176.2 | K163: 250 | L163: 528.6 | M163: 2954.8 | N163: 130.64 | O163: 0 | Q163: 130.64 | R163: 2824.16 | S163: 3216001695
B164: 5 | C164: Peón de Campo | D164: Jardinero II | E164: Juan Emilio Cruz De León | F164: 82-2018-031-AMSA | G164: 2015-01-05 | H164: 72.54 | I164: 30 | J164: 2176.2 | K164: 250 | L164: 528.6 | M164: 2954.8 | N164: 130.64 | O164: 0 | Q164: 130.64 | R164: 2824.16 | S164: 3216001920
B165: 6 | C165: Peón de Campo | D165: Jardinero II | E165: Emilio Taque Carranza | F165: 83-2018-031-AMSA | G165: 2013-01-02 | H165: 72.54 | I165: 30 | J165: 2176.2 | K165: 250 | L165: 528.6 | M165: 2954.8 | N165: 130.64 | O165: 0 | Q165: 130.64 | R165: 2824.16 | S165: 3216004468
B166: 7 | C166: Peón de Campo | D166: Jardinero II | E166: Rigoberto de Jesús Osorio Morataya | F166: 84-2018-031-AMSA | G166: 2007-09-01 | H166: 72.54 | I166: 30 | J166: 2176.2 | K166: 250 | L166: 528.6 | M166: 2954.8 | N166: 130.64 | O166: 0 | Q166: 130.64 | R166: 2824.16 | S166: 3164033390
B167: 8 | C167: Peón de Campo | D167: Jardinero II | E167: Manuel de Jesús Coy Malín | F167: 85-2018-031-AMSA | G167: 2002-01-02 | H167: 72.54 | I167: 30 | J167: 2176.2 | K167: 250 | L167: 528.6 | M167: 2954.8 | N167: 130.64 | O167: 0 | Q167: 130.64 | R167: 2824.16 | S167: 3216001728
B168: 9 | C168: Peón de Campo | D168: Jardinero II | E168: Francisco Javier Rivera Orellana | F168: 86-2018-031-AMSA | G168: 2004-07-07 | H168: 72.54 | I168: 30 | J168: 2176.2 | K168: 250 | L168: 528.6 | M168: 2954.8 | N168: 130.64 | O168: 0 | Q168: 130.64 | R168: 2824.16 | S168: 3216001916 | U168: NACIONES UNIDAS
B169: 10 | D169: Jardinero II | E169: Juan Paplo Lemús Corado | F169: 135-2018-031-AMSA | G169: 2018-05-03 | H169: 72.54 | I169: 30 | J169: =H169*I169 -> 2176.2 | K169: 250 | L169: =17.62*I169 -> 528.6 | M169: =SUM(J169:L169) -> 2954.8 | N169: 130.64 | O169: 0 | Q169: =SUM(N169:P169) -> 130.64 | R169: =+M169-Q169 -> 2824.16 | S169: 3164080169
B177: 11 | C177: Peón de Campo | D177: Jardinero II | E177: Víctor Manuel López Rodríguez | F177: 88-2018-031-AMSA | G177: 2005-02-01 | H177: 72.54 | I177: 30 | J177: 2176.2 | K177: 250 | L177: 528.6 | M177: 2954.8 | N177: 130.64 | O177: 0 | Q177: 130.64 | R177: 2824.16 | S177: 3216001865
B178: 12 | C178: Piloto | D178: Jardinero II | E178: Cosme Virgilio Morales Rodríguez | F178: 89-2018-031-AMSA | G178: 2005-01-03 | H178: 72.54 | I178: 30 | J178: 2176.2 | K178: 250 | L178: 528.6 | M178: 2954.8 | N178: 130.64 | O178: 0 | Q178: 130.64 | R178: 2824.16 | S178: 3216001829
B179: 13 | C179: Peón de Campo | D179: Jardinero II | E179: Carlos Alberto Morales Contreras | F179: 90-2018-031-AMSA | G179: 2005-01-03 | H179: 72.54 | I179: 30 | J179: 2176.2 | K179: 250 | L179: 528.6 | M179: 2954.8 | N179: 130.64 | O179: 0 | Q179: 130.64 | R179: 2824.16 | S179: 3216001833 | U179: NACIONES UNIDAS
B180: 14 | C180: Peón de Campo | D180: Jardinero II | E180: Miguel Ángel Ramos Luis | F180: 91-2018-031-AMSA | G180: 2002-02-12 | H180: 72.54 | I180: 30 | J180: 2176.2 | K180: 250 | L180: 528.6 | M180: 2954.8 | N180: 130.64 | O180: 0 | Q180: 130.64 | R180: 2824.16 | S180: 3216001851 | U180: NACIONES UNIDAS
B181: 15 | C181: Peón de Campo | D181: Jardinero II | E181: Felipe Santiago Carreto | F181: 92-2018-031-AMSA | G181: 2006-01-03 | H181: 72.54 | I181: 30 | J181: 2176.2 | K181: 250 | L181: 528.6 | M181: 2954.8 | N181: 130.64 | O181: 0 | Q181: 130.64 | R181: 2824.16 | S181: 4216008623 | U181: NACIONES UNIDAS
B182: 16 | D182: Jardinero II | E182: Custodio Quiñonez Morataya | F182: 93-2018-031-AMSA | G182: 2015-11-03 | H182: 72.54 | I182: 30 | J182: 2176.2 | K182: 250 | L182: 528.6 | M182: 2954.8 | N182: 130.64 | O182: 0 | Q182: 130.64 | R182: 2824.16 | S182: 3164030412
B183: 17 | D183: Jardinero II | E183: Sotero Chocón Vargas | F183: 94-2018-031-AMSA | G183: 2018-01-01 | H183: 72.54 | I183: 30 | J183: 2176.2 | K183: 250 | L183: 528.6 | M183: 2954.8 | N183: 130.64 | O183: 0 | Q183: 130.64 | R183: 2824.16 | S183: 3164079920
B184: 18 | D184: Jardinero II | E184: José Muñoz Chávez | F184: 95-2018-031-AMSA | G184: 2016-01-01 | H184: 72.54 | I184: 30 | J184: 2176.2 | K184: 250 | L184: 528.6 | M184: 2954.8 | N184: 130.64 | O184: 0 | Q184: 130.64 | R184: 2824.16 | S184: 3229011973
B185: 19 | D185: Jardinero II | E185: Víctor Vicente Paredes González | F185: 96-2018-031-AMSA | G185: 2016-01-01 | H185: 72.54 | I185: 30 | J185: 2176.2 | K185: 250 | L185: 528.6 | M185: 2954.8 | N185: 130.64 | O185: 0 | Q185: 130.64 | R185: 2824.16 | S185: 3287008934
B186: 20 | D186: Jardinero II | E186: Antonio Coy Hernandez | F186: 97-2018-031-AMSA | G186: 2016-01-01 | H186: 72.54 | I186: 30 | J186: 2176.2 | K186: 250 | L186: 528.6 | M186: 2954.8 | N186: 130.64 | O186: 0 | Q186: 130.64 | R186: 2824.16 | S186: 3287036198
B187: 21 | D187: Jardinero II | E187: Vitelio Catalan Ovando | F187: 98-2018-031-AMSA | G187: 2016-01-01 | H187: 72.54 | I187: 30 | J187: 2176.2 | K187: 250 | L187: 528.6 | M187: 2954.8 | N187: 130.64 | O187: 0 | Q187: 130.64 | R187: 2824.16 | S187: 3164074549
B188: 22 | D188: Jardinero II | E188: Hector Adelson Zepeda Coj | F188: 140-2018-031-AMSA | G188: 2018-09-07 | H188: 72.54 | I188: 24 | J188: 1740.96 | K188: 250 | L188: 422.88 | M188: 2413.84 | N188: 104.51 | O188: 0 | Q188: 104.51 | R188: 2309.33 | S188: 3164079952
B189: 23 | D189: Jardinero II | E189: Sixto Emmanuel Hernández Hernández | F189: 101-2018-031-AMSA | G189: 2018-01-01 | H189: 72.54 | I189: 30 | J189: 2176.2 | K189: 250 | L189: 528.6 | M189: 2954.8 | N189: 130.64 | O189: 0 | Q189: 130.64 | R189: 2824.16 | S189: 3164072945
B190: 24 | D190: Jardinero II | E190: Vilmer Antonio Jimenez Choma | F190: 102-2018-031-AMSA | G190: 2018-01-01 | H190: 72.54 | I190: 30 | J190: 2176.2 | K190: 250 | L190: 528.6 | M190: 2954.8 | N190: 130.64 | O190: 0 | Q190: 130.64 | R190: 2824.16 | S190: 3287032954
B191: 25 | D191: Jardinero II | E191: Gabriel de Jesús Morales Pineda | F191: 103-2018-031-AMSA | G191: 2018-01-01 | H191: 72.54 | I191: 30 | J191: 2176.2 | K191: 250 | L191: 528.6 | M191: 2954.8 | N191: 130.64 | O191: 0 | Q191: 130.64 | R191: 2824.16 | S191: 3654013124
B192: 26 | D192: Jardinero II | E192: Adan Crispín | F192: 104-2018-031-AMSA | G192: 2018-01-01 | H192: 72.54 | I192: 30 | J192: 2176.2 | K192: 250 | L192: 528.6 | M192: 2954.8 | N192: 130.64 | O192: 0 | Q192: 130.64 | R192: 2824.16 | S192: 3164072894
B193: 27 | D193: Jardinero II | E193: Fredy Leonidas Domínguez Ortiz | F193: 105-2018-031-AMSA | G193: 2018-01-01 | H193: 72.54 | I193: 30 | J193: 2176.2 | K193: 250 | L193: 528.6 | M193: 2954.8 | N193: 130.64 | O193: 0 | Q193: 130.64 | R193: 2824.16 | S193: 3287032867
B194: 28 | D194: Jardinero II | E194: Vicente Orlando Escobar Estupe | F194: 106-2018-031-AMSA | G194: 2018-01-01 | H194: 72.54 | I194: 30 | J194: 2176.2 | K194: 250 | L194: 528.6 | M194: 2954.8 | N194: 130.64 | O194: 0 | Q194: 130.64 | R194: 2824.16 | S194: 3686024851
B195: 29 | D195: Jardinero II | E195: Carlos Humberto Arizandieta Cabrera | F195: 107-2018-031-AMSA | G195: 2018-01-01 | H195: 72.54 | I195: 30 | J195: 2176.2 | K195: 250 | L195: 528.6 | M195: 2954.8 | N195: 130.64 | O195: 0 | Q195: 130.64 | R195: 2824.16 | S195: 3229052425
B196: 30 | D196: Jardinero II | E196: Gerardo Macolás Marroquín | F196: 108-2018-031-AMSA | G196: 2018-01-01 | H196: 72.54 | I196: 30 | J196: 2176.2 | K196: 250 | L196: 528.6 | M196: 2954.8 | N196: 130.64 | O196: 0 | Q196: 130.64 | R196: 2824.16 | S196: 3229011717
B197: 31 | D197: Jardinero II | E197: Teodoro Quexel Lopez | F197: 109-2018-031-AMSA | G197: 2018-01-01 | H197: 72.54 | I197: 30 | J197: 2176.2 | K197: 250 | L197: 528.6 | M197: 2954.8 | N197: 130.64 | O197: 0 | Q197: 130.64 | R197: 2824.16 | S197: 3287038930
B198: 32 | D198: Jardinero II | E198: Julio Rodolfo Nixón García Ramírez | F198: 110-2018-031-AMSA | G198: 2018-01-01 | H198: 72.54 | I198: 30 | J198: 2176.2 | K198: 250 | L198: 528.6 | M198: 2954.8 | N198: 130.64 | O198: 0 | Q198: 130.64 | R198: 2824.16 | S198: 3661012641
B199: 33 | D199: Jardinero II | E199: Neri Antonio Hernández Osorio | F199: 111-2018-031-AMSA | G199: 2018-01-01 | H199: 72.54 | I199: 30 | J199: 2176.2 | K199: 250 | L199: 528.6 | M199: 2954.8 | N199: 130.64 | O199: 0 | Q199: 130.64 | R199: 2824.16 | S199: 3164040395
B200: 34 | D200: Jardinero II | E200: Mauro Romeo González Quezada | F200: 112-2018-031-AMSA | G200: 2018-01-01 | H200: 72.54 | I200: 30 | J200: 2176.2 | K200: 250 | L200: 528.6 | M200: 2954.8 | N200: 130.64 | O200: 0 | Q200: 130.64 | R200: 2824.16 | S200: 3164079984
F201: Totales | J201: =SUM(J160:J200) -> 72830.16 | K201: 8500 | L201: 17690.48 | M201: 99020.64 | N201: 4372.08 | O201: 0 | P201: 0 | Q201: 4372.08 | R201: 94648.56
L202: =L201+K201 -> 26190.48
J204: Renglón 031 | K204: Renglón 033 | L204: Renglón 033 | M204: Total Devengado Mensual | N204: Deducciones | Q204: Total Deducciones | R204: Liquido
N205: 201 | O205: 211 | P205: 120
B206: TOTAL NÓMINA | J206: Jornales | K206: Bono 66-2000 | L206: complemento específico por nivelación | N206: IGSS | O206: Retenciones Judiciales | P206: Decreto 81-70
J207: =+J201+J151+J95+J55+J38 -> 237188.76 | K207: 27500 | L207: 58626.2 | M207: 323314.96 | N207: 14287.66 | O207: 2170 | P207: 0 | Q207: 16457.66 | R207: 306857.3

Sheet POLICIAS
A2: AUTORIDAD PARA EL MANEJO SUSTENTABLE DE LA CUENCA Y DEL LAGO DE AMATITLÁN
A3: NOMINA CORRESPONDIENTE AL MES DE SEPTIEMBRE 2018
A4: NÚMERO 26-2018
B5: RENGLÓN 031 "JORNALES"
C7: SOLICITUD DE PAGO
A9: SUBPRODUCTO: DIRECCIÓN Y COORDINACIÓN 001-001-0001
B10: 11130016-219-00-33-00-000-001-000-031-0115-11-0000-0000
B14: No. | C14: Titulo Jornal Diario | D14: Empleado | E14: Contrato | F14: Fecha de Ingreso | G14: Jornal | H14: Días | I14: Renglón 031 | J14: Renglón 033 | K14: Renglón 033 | L14: Total Devengado Mensual | M14: Deducciones | P14: Total Deducciones | Q14: Liquido | R14: Número de Cuenta G&T
M15: 201 | N15: 211 | O15: 120
I16: Jornales | J16: Bono 66-2000 | K16: complemento específico por nivelación | M16: IGSS | N16: Retenciones Judiciales | O16: Decreto 81-70
B17: 1 | C17: Peon Vigilante V | D17: José Luis Perpuac Gómez | E17: 17-2018-031-AMSA | F17: 2017-02-20 | G17: 75.64 | H17: 30 | I17: =G17*H17 -> 2269.2 | J17: 250 | K17: =14.52*H17 -> 435.6 | L17: =SUM(I17:K17) -> 2954.8 | M17: =ROUND((I17+K17)*4.83%,2) -> 130.64 | N17: 0 | O17: 0 | P17: =SUM(M17:O17) -> 130.64 | Q17: =+L17-P17 -> 2824.16 | R17: 0430010569-2
